[Event "Championnat d'Europe de Blitz"]
[Date "2024.12.09"]
[White "Fressinet, Laurent"]
[Black "Asllani, Muhamet"]
[WhiteElo "2588"]
[BlackElo "2112"]
[Round "5.17"]
[Result "1-0"]
[TimeControl "180+2"]

1. d4 {[%emt 00:17:06] [%clk 00:03:03]} Nf6 {[%clk 00:03:04]} 2. Nf3 {[%clk
00:03:04]} e6 {[%emt 00:00:02] [%clk 00:03:05]} 3. Bg5 {[%emt 00:00:01] [%clk
00:03:05]} d5 {[%emt 00:00:01] [%clk 00:03:06]} 4. Nbd2 {[%emt 00:00:01] [%clk
00:03:05]} Be7 {[%emt 00:00:01] [%clk 00:03:06]} 5. e3 {[%emt 00:00:02] [%clk
00:03:05]} O-O {[%emt 00:00:01] [%clk 00:03:07]} 6. Bd3 {[%emt 00:00:04] [%clk
00:03:03]} c5 {[%clk 00:03:09]} 7. c3 {[%emt 00:00:02] [%clk 00:03:04]} Nc6
{[%emt 00:00:03] [%clk 00:03:08]} 8. O-O {[%emt 00:00:15] [%clk 00:02:50]} h6
{[%emt 00:00:05] [%clk 00:03:05]} 9. Bh4 {[%emt 00:00:04] [%clk 00:02:48]} b6
{[%emt 00:00:08] [%clk 00:03:00]} 10. Ne5 {[%emt 00:00:01] [%clk 00:02:48]} Nxe5
{[%emt 00:00:05] [%clk 00:02:58]} 11. dxe5 {[%emt 00:00:02] [%clk 00:02:48]} Nd7
{[%clk 00:02:59]} 12. Bxe7 {[%emt 00:00:13] [%clk 00:02:38]} Qxe7 {[%clk
00:03:00]} 13. f4 {[%clk 00:02:39]} Bb7 {[%emt 00:00:08] [%clk 00:02:54]} 14.
Nf3 {[%emt 00:00:09] [%clk 00:02:31]} Rad8 {[%emt 00:00:10] [%clk 00:02:46]} 15.
Qe2 {[%emt 00:00:04] [%clk 00:02:30]} c4 {[%emt 00:00:25] [%clk 00:02:24]} 16.
Bc2 {[%emt 00:00:01] [%clk 00:02:30]} Nc5 {[%emt 00:00:01] [%clk 00:02:25]} 17.
Nd4 {[%emt 00:00:08] [%clk 00:02:24]} a6 {[%emt 00:00:06] [%clk 00:02:21]} 18.
Qg4 {[%emt 00:00:18] [%clk 00:02:07]} Kh8 {[%emt 00:00:27] [%clk 00:01:56]} 19.
Rf3 {[%emt 00:00:02] [%clk 00:02:07]} f5 {[%emt 00:00:18] [%clk 00:01:41]} 20.
Qh5 {[%emt 00:00:43] [%clk 00:01:26]} Qe8 {[%emt 00:00:05] [%clk 00:01:38]} 21.
Qh3 {[%emt 00:00:12] [%clk 00:01:15]} Ne4 {[%emt 00:00:14] [%clk 00:01:26]} 22.
Bxe4 {[%emt 00:00:02] [%clk 00:01:16]} dxe4 {[%emt 00:00:04] [%clk 00:01:24]}
23. Rf2 {[%emt 00:00:02] [%clk 00:01:16]} b5 {[%emt 00:00:04] [%clk 00:01:21]}
24. a3 {[%emt 00:00:06] [%clk 00:01:13]} a5 {[%emt 00:00:11] [%clk 00:01:12]}
25. g4 {[%clk 00:01:14]} fxg4 {[%emt 00:00:18] [%clk 00:00:56]} 26. Qxg4 {[%emt
00:00:01] [%clk 00:01:15]} Bd5 {[%emt 00:00:02] [%clk 00:00:56]} 27. Rg2 {[%emt
00:00:05] [%clk 00:01:11]} Rf7 {[%emt 00:00:05] [%clk 00:00:53]} 28. Kh1 {[%emt
00:00:03] [%clk 00:01:11]} b4 {[%emt 00:00:03] [%clk 00:00:51]} 29. axb4 {[%emt
00:00:05] [%clk 00:01:09]} axb4 {[%clk 00:00:53]} 30. cxb4 {[%clk 00:01:10]} Qe7
{[%emt 00:00:34] [%clk 00:00:20]} 31. b5 {[%emt 00:00:05] [%clk 00:01:08]} Re8
{[%emt 00:00:05] [%clk 00:00:17]} 32. Rag1 {[%emt 00:00:06] [%clk 00:01:03]} Bb7
{[%emt 00:00:06] [%clk 00:00:14]} 33. Qh5 {[%emt 00:00:02] [%clk 00:01:03]} Rd8
{[%emt 00:00:05] [%clk 00:00:11]} 34. Rg6 {[%emt 00:00:16] [%clk 00:00:49]} Rxd4
{[%emt 00:00:02] [%clk 00:00:11]} 35. Qg4 {[%emt 00:00:41] [%clk 00:00:10]} Rd3
{[%emt 00:00:06] [%clk 00:00:07]} 36. Rxh6+ {[%emt 00:00:01] [%clk 00:00:11]}
Kg8 {[%emt 00:00:01] [%clk 00:00:08]} 37. Qh5 {[%clk 00:00:12]} 1-0

[Site "Europe Echecs"]

[Event "Championnat d'Europe de Blitz"]
[Date "2024.12.09"]
[White "Kadric, Denis"]
[Black "Trushko, Andrii"]
[WhiteElo "2544"]
[BlackElo "2143"]
[Round "5.18"]
[Result "0-1"]
[TimeControl "180+2"]

1. e4 {[%emt 00:16:57] [%clk 00:03:03]} c6 {[%clk 00:03:04]} 2. d4 {[%clk
00:03:04]} d5 {[%emt 00:00:01] [%clk 00:03:05]} 3. e5 {[%clk 00:03:05]} Bf5
{[%clk 00:03:06]} 4. h4 {[%emt 00:00:01] [%clk 00:03:06]} h5 {[%emt 00:00:01]
[%clk 00:03:07]} 5. Bd3 {[%emt 00:00:02] [%clk 00:03:07]} Bxd3 {[%emt 00:00:01]
[%clk 00:03:08]} 6. Qxd3 {[%emt 00:00:01] [%clk 00:03:08]} e6 {[%clk 00:03:09]}
7. Bg5 {[%emt 00:00:04] [%clk 00:03:06]} Qa5+ {[%emt 00:00:06] [%clk 00:03:06]}
8. Nd2 {[%emt 00:00:05] [%clk 00:03:02]} Qa6 {[%emt 00:00:05] [%clk 00:03:03]}
9. c4 {[%emt 00:00:02] [%clk 00:03:03]} Ne7 {[%clk 00:03:04]} 10. Ne2 {[%emt
00:00:31] [%clk 00:02:34]} Nf5 {[%emt 00:00:13] [%clk 00:02:53]} 11. O-O {[%emt
00:00:03] [%clk 00:02:33]} c5 {[%emt 00:00:13] [%clk 00:02:42]} 12. Qf3 {[%emt
00:00:54] [%clk 00:01:41]} Nc6 {[%emt 00:00:01] [%clk 00:02:43]} 13. cxd5 {[%emt
00:00:01] [%clk 00:01:41]} Ncxd4 {[%emt 00:00:02] [%clk 00:02:44]} 14. Nxd4
{[%emt 00:00:01] [%clk 00:01:42]} Nxd4 {[%clk 00:02:44]} 15. Qe4 {[%clk
00:01:44]} exd5 {[%emt 00:00:26] [%clk 00:02:21]} 16. Qxd5 {[%emt 00:00:01]
[%clk 00:01:45]} Qc6 {[%clk 00:02:22]} 17. Qc4 {[%emt 00:00:12] [%clk 00:01:35]}
Ne6 {[%emt 00:00:03] [%clk 00:02:21]} 18. Nf3 {[%emt 00:00:06] [%clk 00:01:31]}
Be7 {[%emt 00:00:05] [%clk 00:02:18]} 19. Bxe7 {[%emt 00:00:13] [%clk 00:01:20]}
Kxe7 {[%clk 00:02:19]} 20. Rad1 {[%emt 00:00:07] [%clk 00:01:15]} Rhd8 {[%emt
00:00:02] [%clk 00:02:18]} 21. Qc2 {[%emt 00:00:03] [%clk 00:01:14]} g6 {[%emt
00:00:04] [%clk 00:02:16]} 22. b3 {[%emt 00:00:03] [%clk 00:01:14]} b5 {[%emt
00:00:05] [%clk 00:02:13]} 23. Rfe1 {[%emt 00:00:17] [%clk 00:00:59]} Rac8
{[%emt 00:00:01] [%clk 00:02:14]} 24. Nd2 {[%emt 00:00:05] [%clk 00:00:56]} Rd4
{[%emt 00:00:52] [%clk 00:01:23]} 25. Ne4 {[%emt 00:00:18] [%clk 00:00:40]} Rcd8
{[%emt 00:00:09] [%clk 00:01:17]} 26. f3 {[%emt 00:00:03] [%clk 00:00:39]} Qd5
{[%emt 00:00:03] [%clk 00:01:15]} 27. Rxd4 {[%emt 00:00:05] [%clk 00:00:37]}
Qxd4+ {[%emt 00:00:02] [%clk 00:01:14]} 28. Nf2 {[%emt 00:00:02] [%clk
00:00:37]} Qxh4 {[%emt 00:00:06] [%clk 00:01:10]} 29. Re4 {[%emt 00:00:07] [%clk
00:00:32]} Qg5 {[%emt 00:00:05] [%clk 00:01:07]} 30. f4 {[%emt 00:00:23]} Qg3
{[%clk 00:00:58]} 31. a4 {[%emt 00:00:07] [%clk 00:00:18]} a6 {[%emt 00:00:08]
[%clk 00:00:51]} 32. axb5 {[%clk 00:00:19]} axb5 {[%emt 00:00:01] [%clk
00:00:53]} 33. f5 {[%emt 00:00:15] [%clk 00:00:05]} gxf5 {[%emt 00:00:03] [%clk
00:00:52]} 34. Re1 {[%clk 00:00:07]} Rg8 {[%emt 00:00:03] [%clk 00:00:51]} 35.
Nd3 {[%emt 00:00:01] [%clk 00:00:07]} h4 {[%emt 00:00:06] [%clk 00:00:48]} 36.
Re2 {[%emt 00:00:06] [%clk 00:00:03]} h3 {[%emt 00:00:03] [%clk 00:00:47]} 37.
Nxc5 {[%clk 00:00:04]} Nd4 {[%emt 00:00:06] [%clk 00:00:42]} 38. Qd2 {[%emt
00:00:04] [%clk 00:00:03]} Nxe2+ {[%clk 00:00:43]} 0-1

[Site "Europe Echecs"]

[Event "Championnat d'Europe de Blitz"]
[Date "2024.12.09"]
[White "Pacher, Milan"]
[Black "Lagarde, Maxime"]
[WhiteElo "2310"]
[BlackElo "2600"]
[Round "5.19"]
[Result "0-1"]
[TimeControl "180+2"]

1. Nf3 {[%emt 00:16:38] [%clk 00:03:03]} f5 {[%clk 00:03:04]} 2. d3 {[%emt
00:00:02] [%clk 00:03:02]} Nc6 {[%emt 00:00:03] [%clk 00:03:04]} 3. e4 {[%clk
00:03:02]} e5 {[%emt 00:00:02] [%clk 00:03:04]} 4. Nc3 {[%emt 00:00:05] [%clk
00:02:59]} Nf6 {[%emt 00:00:12] [%clk 00:02:55]} 5. g3 {[%emt 00:00:12] [%clk
00:02:48]} fxe4 {[%emt 00:00:06] [%clk 00:02:51]} 6. dxe4 {[%emt 00:00:02] [%clk
00:02:48]} Bb4 {[%emt 00:00:05] [%clk 00:02:48]} 7. Bg2 {[%emt 00:00:25] [%clk
00:02:24]} Bxc3+ {[%emt 00:00:03] [%clk 00:02:48]} 8. bxc3 {[%emt 00:00:01]
[%clk 00:02:25]} d6 {[%emt 00:00:01] [%clk 00:02:49]} 9. O-O {[%emt 00:00:09]
[%clk 00:02:17]} O-O {[%emt 00:00:03] [%clk 00:02:49]} 10. Nd2 {[%emt 00:00:13]
[%clk 00:02:05]} Bg4 {[%emt 00:00:04] [%clk 00:02:48]} 11. f3 {[%emt 00:00:02]
[%clk 00:02:05]} Be6 {[%emt 00:00:02] [%clk 00:02:48]} 12. c4 {[%emt 00:00:04]
[%clk 00:02:03]} Qe8 {[%emt 00:00:08] [%clk 00:02:43]} 13. a4 {[%emt 00:00:11]
[%clk 00:01:53]} Na5 {[%emt 00:00:05] [%clk 00:02:40]} 14. c5 {[%emt 00:00:14]
[%clk 00:01:42]} dxc5 {[%emt 00:00:02] [%clk 00:02:39]} 15. Bb2 {[%emt 00:00:02]
[%clk 00:01:42]} Nc6 {[%emt 00:00:02] [%clk 00:02:39]} 16. Rf2 {[%emt 00:00:16]
[%clk 00:01:28]} Rd8 {[%emt 00:00:01] [%clk 00:02:40]} 17. Bf1 {[%emt 00:00:02]
[%clk 00:01:28]} Kh8 {[%emt 00:00:08] [%clk 00:02:34]} 18. Ra3 {[%emt 00:00:12]
[%clk 00:01:18]} Nd4 {[%emt 00:00:09] [%clk 00:02:28]} 19. Re3 {[%emt 00:00:12]
[%clk 00:01:07]} Qxa4 {[%emt 00:00:09] [%clk 00:02:21]} 20. Ra3 {[%emt 00:00:15]
[%clk 00:00:54]} Qc6 {[%emt 00:00:04] [%clk 00:02:19]} 21. Rxa7 {[%emt 00:00:06]
[%clk 00:00:50]} Qb6 {[%emt 00:00:02] [%clk 00:02:19]} 22. Qa1 {[%emt 00:00:04]
[%clk 00:00:48]} Nxc2 {[%emt 00:00:10] [%clk 00:02:11]} 23. Nc4 {[%emt 00:00:05]
[%clk 00:00:45]} Bxc4 {[%emt 00:00:14] [%clk 00:01:59]} 24. Rxc2 {[%emt
00:00:01] [%clk 00:00:45]} Bxf1 {[%emt 00:00:03] [%clk 00:01:58]} 25. Kxf1
{[%emt 00:00:03] [%clk 00:00:45]} Nxe4 {[%emt 00:00:17] [%clk 00:01:43]} 26.
Bxe5 {[%emt 00:00:02] [%clk 00:00:44]} Qg6 {[%emt 00:00:08] [%clk 00:01:38]} 27.
Kg2 {[%emt 00:00:03] [%clk 00:00:43]} Ng5 {[%emt 00:00:19] [%clk 00:01:22]} 28.
Rf2 {[%emt 00:00:16] [%clk 00:00:28]} Nxf3 {[%emt 00:00:06] [%clk 00:01:18]} 29.
Rxb7 {[%emt 00:00:13] [%clk 00:00:17]} Nxe5 {[%emt 00:00:13] [%clk 00:01:06]}
30. Rxf8+ {[%emt 00:00:06] [%clk 00:00:14]} Rxf8 {[%emt 00:00:01] [%clk
00:01:07]} 31. Qxe5 {[%emt 00:00:02] [%clk 00:00:13]} Qc6+ {[%emt 00:00:02]
[%clk 00:01:08]} 0-1

[Site "Europe Echecs"]

[Event "Championnat d'Europe de Blitz"]
[Date "2024.12.09"]
[White "Sargissian, Gabriel"]
[Black "Popovic, Milos T"]
[WhiteElo "2628"]
[BlackElo "2334"]
[Round "5.20"]
[Result "1/2-1/2"]
[TimeControl "180+2"]

1. Nf3 {[%emt 00:09:46] [%clk 00:03:03]} Nf6 {[%clk 00:03:03]} 2. c4 {[%emt
00:00:01] [%clk 00:03:04]} e6 {[%emt 00:00:01] [%clk 00:03:04]} 3. g3 {[%emt
00:00:08] [%clk 00:02:58]} b6 {[%emt 00:00:02] [%clk 00:03:04]} 4. Bg2 {[%emt
00:00:01] [%clk 00:02:58]} Bb7 {[%emt 00:00:01] [%clk 00:03:05]} 5. d4 {[%emt
00:00:03] [%clk 00:02:57]} c5 {[%emt 00:00:03] [%clk 00:03:05]} 6. d5 {[%emt
00:00:06] [%clk 00:02:53]} exd5 {[%emt 00:00:01] [%clk 00:03:05]} 7. Nh4 {[%emt
00:00:02] [%clk 00:02:53]} g6 {[%emt 00:00:08] [%clk 00:02:59]} 8. cxd5 {[%emt
00:00:08] [%clk 00:02:47]} Bg7 {[%emt 00:00:02] [%clk 00:03:00]} 9. Nc3 {[%emt
00:00:05] [%clk 00:02:43]} O-O {[%emt 00:00:02] [%clk 00:03:00]} 10. O-O {[%emt
00:00:02] [%clk 00:02:43]} d6 {[%emt 00:00:02] [%clk 00:03:00]} 11. e4 {[%emt
00:00:17] [%clk 00:02:28]} a6 {[%emt 00:00:01] [%clk 00:03:01]} 12. a4 {[%emt
00:00:02] [%clk 00:02:29]} Nbd7 {[%emt 00:00:01] [%clk 00:03:01]} 13. Re1 {[%emt
00:00:05] [%clk 00:02:25]} Re8 {[%emt 00:00:02] [%clk 00:03:02]} 14. Nf3 {[%emt
00:00:08] [%clk 00:02:20]} Qc7 {[%emt 00:00:01] [%clk 00:03:02]} 15. Bg5 {[%emt
00:00:18] [%clk 00:02:03]} c4 {[%emt 00:00:07] [%clk 00:02:58]} 16. Nd2 {[%emt
00:00:30] [%clk 00:01:35]} Ne5 {[%emt 00:00:47] [%clk 00:02:14]} 17. Bf1 {[%emt
00:00:06] [%clk 00:01:31]} Nfd7 {[%emt 00:00:12] [%clk 00:02:03]} 18. Rc1 {[%emt
00:00:14] [%clk 00:01:19]} Rac8 {[%emt 00:00:21] [%clk 00:01:45]} 19. Be3 {[%emt
00:00:10] [%clk 00:01:11]} Nc5 {[%emt 00:00:11] [%clk 00:01:36]} 20. Nxc4 {[%emt
00:00:04] [%clk 00:01:08]} Nxc4 {[%emt 00:00:05] [%clk 00:01:33]} 21. Bxc4
{[%emt 00:00:02] [%clk 00:01:09]} Nxe4 {[%emt 00:00:08] [%clk 00:01:27]} 22.
Nxe4 {[%emt 00:00:04] [%clk 00:01:07]} Rxe4 {[%emt 00:00:02] [%clk 00:01:27]}
23. Bd3 {[%emt 00:00:07] [%clk 00:01:02]} Rxe3 {[%emt 00:00:34] [%clk 00:00:56]}
24. Rxc7 {[%emt 00:00:06] [%clk 00:00:58]} Rxe1+ {[%emt 00:00:01] [%clk
00:00:57]} 25. Qxe1 {[%clk 00:00:59]} Rxc7 {[%emt 00:00:01] [%clk 00:00:58]} 26.
Qe8+ {[%emt 00:00:06] [%clk 00:00:55]} Bf8 {[%emt 00:00:01] [%clk 00:00:59]} 27.
Be4 {[%emt 00:00:11] [%clk 00:00:45]} Re7 {[%emt 00:00:13] [%clk 00:00:49]} 28.
Qb8 {[%emt 00:00:02] [%clk 00:00:44]} Rxe4 {[%emt 00:00:16] [%clk 00:00:36]} 29.
Qxb7 {[%clk 00:00:45]} Rb4 {[%emt 00:00:04] [%clk 00:00:34]} 30. Qxa6 {[%emt
00:00:03] [%clk 00:00:44]} Rxb2 {[%clk 00:00:35]} 31. g4 {[%emt 00:00:12] [%clk
00:00:35]} h6 {[%emt 00:00:06] [%clk 00:00:31]} 32. h4 {[%emt 00:00:04] [%clk
00:00:33]} Bg7 {[%emt 00:00:01] [%clk 00:00:32]} 33. Qc8+ {[%emt 00:00:06] [%clk
00:00:28]} Kh7 {[%emt 00:00:01] [%clk 00:00:33]} 34. Qe8 {[%emt 00:00:07] [%clk
00:00:23]} Rb4 {[%emt 00:00:07] [%clk 00:00:28]} 35. f3 {[%emt 00:00:05] [%clk
00:00:20]} Rf4 {[%emt 00:00:04] [%clk 00:00:26]} 36. Kg2 {[%emt 00:00:02] [%clk
00:00:21]} Be5 {[%emt 00:00:02] [%clk 00:00:26]} 37. Qb5 {[%emt 00:00:07] [%clk
00:00:15]} Kg7 {[%emt 00:00:03] [%clk 00:00:25]} 38. g5 {[%emt 00:00:04] [%clk
00:00:14]} Rxh4 {[%emt 00:00:01] [%clk 00:00:26]} 39. gxh6+ {[%clk 00:00:15]}
Kxh6 {[%emt 00:00:01] [%clk 00:00:27]} 40. Qxb6 {[%emt 00:00:03] [%clk
00:00:13]} Rxa4 {[%emt 00:00:02] [%clk 00:00:28]} 41. Qb7 {[%clk 00:00:15]} Rf4
{[%emt 00:00:02] [%clk 00:00:28]} 1/2-1/2

[Site "Europe Echecs"]

[Event "Championnat d'Europe de Blitz"]
[Date "2024.12.09"]
[White "Pantsulaia, Levan"]
[Black "Perunovic, Miodrag"]
[WhiteElo "2522"]
[BlackElo "2357"]
[Round "5.21"]
[Result "1-0"]
[TimeControl "180+2"]

1. Nf3 {[%emt 00:03:27] [%clk 00:03:03]} Nf6 {[%emt 00:00:01] [%clk 00:03:03]}
2. g3 {[%clk 00:03:04]} g6 {[%emt 00:00:01] [%clk 00:03:04]} 3. b3 {[%emt
00:00:01] [%clk 00:03:05]} Bg7 {[%emt 00:00:01] [%clk 00:03:05]} 4. Bb2 {[%clk
00:03:06]} O-O {[%emt 00:00:02] [%clk 00:03:05]} 5. Bg2 {[%clk 00:03:07]} d6
{[%clk 00:03:06]} 6. O-O {[%emt 00:00:03] [%clk 00:03:06]} e5 {[%emt 00:00:02]
[%clk 00:03:07]} 7. c4 {[%clk 00:03:07]} c5 {[%emt 00:00:09] [%clk 00:03:00]} 8.
d3 {[%emt 00:00:01] [%clk 00:03:07]} Nc6 {[%emt 00:00:02] [%clk 00:03:01]} 9.
Nc3 {[%emt 00:00:01] [%clk 00:03:08]} h6 {[%emt 00:00:03] [%clk 00:03:00]} 10.
Nd2 {[%emt 00:00:06] [%clk 00:03:04]} Be6 {[%emt 00:00:05] [%clk 00:02:57]} 11.
Rc1 {[%emt 00:00:02] [%clk 00:03:05]} Nh7 {[%emt 00:00:13] [%clk 00:02:45]} 12.
a3 {[%emt 00:00:02] [%clk 00:03:05]} f5 {[%emt 00:00:09] [%clk 00:02:38]} 13. e3
{[%clk 00:03:06]} Ng5 {[%emt 00:00:06] [%clk 00:02:34]} 14. f4 {[%emt 00:00:09]
[%clk 00:02:58]} Nh7 {[%emt 00:00:07] [%clk 00:02:29]} 15. Qc2 {[%emt 00:00:02]
[%clk 00:02:59]} Qd7 {[%emt 00:00:06] [%clk 00:02:25]} 16. Nd5 {[%emt 00:00:06]
[%clk 00:02:54]} Rae8 {[%emt 00:00:01] [%clk 00:02:26]} 17. b4 {[%emt 00:00:03]
[%clk 00:02:54]} b6 {[%emt 00:00:01] [%clk 00:02:27]} 18. Qa4 {[%emt 00:00:02]
[%clk 00:02:54]} Rc8 {[%emt 00:00:25] [%clk 00:02:03]} 19. Ba1 {[%emt 00:00:10]
[%clk 00:02:47]} Kh8 {[%clk 00:02:04]} 20. Nf3 {[%emt 00:00:07] [%clk 00:02:42]}
Qf7 {[%emt 00:00:54] [%clk 00:01:12]} 21. bxc5 {[%emt 00:00:14] [%clk 00:02:31]}
bxc5 {[%emt 00:00:08] [%clk 00:01:05]} 22. fxe5 {[%emt 00:00:08] [%clk
00:02:25]} Nxe5 {[%emt 00:00:09] [%clk 00:00:59]} 23. Nxe5 {[%emt 00:00:06]
[%clk 00:02:20]} dxe5 {[%emt 00:00:02] [%clk 00:00:59]} 24. Rb1 {[%emt 00:00:06]
[%clk 00:02:16]} Rb8 {[%emt 00:00:05] [%clk 00:00:56]} 25. Qc6 {[%emt 00:00:18]
[%clk 00:02:00]} Rxb1 {[%emt 00:00:18] [%clk 00:00:40]} 26. Rxb1 {[%clk
00:02:01]} Rc8 {[%clk 00:00:42]} 27. Qa6 {[%emt 00:00:07] [%clk 00:01:57]} Rd8
{[%emt 00:00:21] [%clk 00:00:22]} 28. Rb7 {[%emt 00:00:11] [%clk 00:01:48]} Rd7
{[%emt 00:00:02] [%clk 00:00:22]} 29. Rb8+ {[%emt 00:00:08] [%clk 00:01:42]} Nf8
{[%emt 00:00:01] [%clk 00:00:23]} 30. Qc6 {[%emt 00:00:13] [%clk 00:01:31]} Kh7
{[%emt 00:00:16] [%clk 00:00:09]} 31. Qxc5 {[%emt 00:00:06] [%clk 00:01:27]} f4
{[%emt 00:00:03] [%clk 00:00:08]} 32. exf4 {[%emt 00:00:21] [%clk 00:01:08]}
exf4 {[%clk 00:00:09]} 33. Bxg7 {[%emt 00:00:03] [%clk 00:01:07]} Qxg7 {[%clk
00:00:10]} 34. Rxf8 {[%emt 00:00:16] [%clk 00:00:53]} fxg3 {[%emt 00:00:08]
[%clk 00:00:04]} 35. Nf6+ {[%emt 00:00:03] [%clk 00:00:00]} 1-0

[Site "Europe Echecs"]

[Event "Championnat d'Europe de Blitz"]
[Date "2024.12.09"]
[White "Dardha, Daniel"]
[Black "Aizenberg, Benny"]
[WhiteElo "2639"]
[BlackElo "2425"]
[Round "5.22"]
[Result "1-0"]
[TimeControl "180+2"]

1. d4 {[%clk 00:03:02]} Nf6 {[%clk 00:03:03]} 2. c4 {[%clk 00:03:02]} g6 {[%emt
00:00:01] [%clk 00:03:04]} 3. h4 {[%emt 00:00:04] [%clk 00:03:00]} Bg7 {[%emt
00:00:07] [%clk 00:03:00]} 4. Nc3 {[%emt 00:00:01] [%clk 00:03:01]} d6 {[%emt
00:00:08] [%clk 00:02:54]} 5. e4 {[%emt 00:00:01] [%clk 00:03:01]} O-O {[%emt
00:00:07] [%clk 00:02:50]} 6. Be2 {[%emt 00:00:01] [%clk 00:03:01]} c5 {[%emt
00:00:05] [%clk 00:02:48]} 7. d5 {[%clk 00:03:01]} e6 {[%emt 00:00:02] [%clk
00:02:49]} 8. h5 {[%clk 00:03:02]} exd5 {[%emt 00:00:04] [%clk 00:02:47]} 9.
exd5 {[%emt 00:00:01] [%clk 00:03:02]} Re8 {[%emt 00:00:03] [%clk 00:02:47]} 10.
Kf1 {[%emt 00:00:01] [%clk 00:03:02]} Nbd7 {[%emt 00:00:14] [%clk 00:02:35]} 11.
h6 {[%emt 00:00:01] [%clk 00:03:03]} Bh8 {[%emt 00:00:03] [%clk 00:02:34]} 12.
Bg5 {[%emt 00:00:02] [%clk 00:03:03]} a6 {[%emt 00:00:07] [%clk 00:02:30]} 13.
a4 {[%emt 00:00:13] [%clk 00:02:52]} Qb6 {[%emt 00:00:13] [%clk 00:02:19]} 14.
b3 {[%emt 00:00:08] [%clk 00:02:46]} Ne5 {[%emt 00:00:22] [%clk 00:01:59]} 15.
Rc1 {[%emt 00:00:07] [%clk 00:02:41]} Bf5 {[%emt 00:00:05] [%clk 00:01:56]} 16.
Rh4 {[%emt 00:00:05] [%clk 00:02:37]} Ned7 {[%emt 00:00:12] [%clk 00:01:47]} 17.
Nf3 {[%emt 00:00:19] [%clk 00:02:19]} Qb4 {[%emt 00:00:29] [%clk 00:01:20]} 18.
Bd2 {[%emt 00:00:10] [%clk 00:02:11]} Qb6 {[%emt 00:00:05] [%clk 00:01:18]} 19.
Ng5 {[%emt 00:00:02] [%clk 00:02:10]} Ne5 {[%emt 00:00:10] [%clk 00:01:10]} 20.
Bf4 {[%emt 00:00:19] [%clk 00:01:53]} Re7 {[%emt 00:00:06] [%clk 00:01:06]} 21.
g3 {[%emt 00:00:03] [%clk 00:01:52]} Rae8 {[%emt 00:00:03] [%clk 00:01:05]} 22.
Kg2 {[%emt 00:00:04] [%clk 00:01:50]} Qb4 {[%emt 00:00:18] [%clk 00:00:50]} 23.
Bd2 {[%emt 00:00:10] [%clk 00:01:42]} Qb6 {[%emt 00:00:01] [%clk 00:00:51]} 24.
Be1 {[%emt 00:00:14] [%clk 00:01:30]} Nd3 {[%emt 00:00:09] [%clk 00:00:44]} 25.
Bxd3 {[%emt 00:01:00] [%clk 00:00:32]} Rxe1 {[%emt 00:00:02] [%clk 00:00:44]}
26. Qxe1 {[%emt 00:00:02] [%clk 00:00:32]} Rxe1 {[%emt 00:00:01] [%clk
00:00:45]} 27. Rxe1 {[%clk 00:00:33]} Bxd3 {[%emt 00:00:02] [%clk 00:00:46]} 28.
Re7 {[%clk 00:00:33]} Kf8 {[%emt 00:00:03] [%clk 00:00:44]} 29. Rxf7+ {[%emt
00:00:04] [%clk 00:00:31]} Ke8 {[%emt 00:00:11] [%clk 00:00:35]} 30. Rh1 {[%emt
00:00:04] [%clk 00:00:29]} Ne4 {[%emt 00:00:29] [%clk 00:00:08]} 31. Ncxe4
{[%emt 00:00:02] [%clk 00:00:30]} Bxe4+ {[%emt 00:00:01] [%clk 00:00:09]} 32. f3
{[%clk 00:00:31]} Qd8 {[%emt 00:00:04] [%clk 00:00:08]} 33. Ne6 {[%emt 00:00:12]
[%clk 00:00:21]} Qa5 {[%emt 00:00:03] [%clk 00:00:06]} 34. Rf8+ {[%emt 00:00:04]
[%clk 00:00:20]} Ke7 {[%clk 00:00:07]} 35. fxe4 {[%clk 00:00:21]} Qd2+ {[%emt
00:00:04] [%clk 00:00:06]} 36. Rf2 {[%emt 00:00:01] [%clk 00:00:22]} Qe3 {[%clk
00:00:07]} 37. Rhf1 {[%clk 00:00:23]} Qxe4+ {[%emt 00:00:03] [%clk 00:00:05]}
38. Kh2 {[%clk 00:00:24]} Bf6 {[%emt 00:00:05] [%clk 00:00:03]} 39. Rxf6 {[%emt
00:00:01] [%clk 00:00:24]} Qe2+ {[%clk 00:00:04]} 40. R1f2 {[%emt 00:00:04]
[%clk 00:00:22]} Qh5+ {[%emt 00:00:01] [%clk 00:00:05]} 41. Kg2 {[%emt 00:00:01]
[%clk 00:00:23]} g5 {[%emt 00:00:04] [%clk 00:00:04]} 42. Rf7+ {[%emt 00:00:02]
[%clk 00:00:23]} Qxf7 {[%emt 00:00:02]} 43. Rxf7+ {[%clk 00:00:24]} Kxf7 {[%emt
00:00:01] [%clk 00:00:05]} 44. Nxg5+ {[%emt 00:00:02] [%clk 00:00:25]} Kg6
{[%clk 00:00:06]} 45. Ne4 {[%clk 00:00:26]} 1-0

[Site "Europe Echecs"]